bitfinex-derivatives/quotes_BTCF0:USTF0_20250505
["timestamp","ask_amount","ask_price","bid_price","bid_amount"]
[1746474142006,0.04769242,94578.0,94577.0,0.3956996]
[1746474142508,0.04669242,94578.0,94577.0,0.3956996]
[1746474142713,0.04769242,94578.0,94577.0,0.3956996]
[1746474146617,0.004,94578.0,94577.0,0.3956996]
[1746474149513,0.13394881,94584.0,94583.0,0.2114862]
[1746474150118,0.13394881,94584.0,94583.0,0.3314862]
[1746474150521,0.13694881,94584.0,94583.0,0.3314862]
[1746474150722,0.13994881,94584.0,94583.0,0.3314862]
[1746474151119,6e-08,94589.0,94588.0,0.211475]
[1746474151318,6e-08,94589.0,94588.0,0.636915]
[1746474151515,6e-08,94589.0,94588.0,0.742635]
[1746474151714,6e-08,94589.0,94588.0,0.808935]
[1746474152219,6e-08,94589.0,94588.0,0.928935]
[1746474152723,0.00100006,94589.0,94588.0,0.928935]
[1746474153024,0.00200006,94589.0,94588.0,0.928935]
[1746474154028,0.16291889,94589.0,94588.0,0.928935]
[1746474157024,0.16291889,94589.0,94588.0,0.823215]
[1746474157526,0.002,94589.0,94588.0,0.823215]
[1746474158320,0.001,94589.0,94588.0,0.823215]
[1746474158517,0.16091889,94594.0,94593.0,0.2114638]
[1746474159226,0.16091889,94594.0,94593.0,0.3314638]
[1746474159418,0.16091889,94594.0,94593.0,0.3930638]
[1746474159929,0.16091889,94594.0,94593.0,0.3970638]
[1746474160828,0.061,94602.0,94601.0,0.2114459]
[1746474161031,0.061,94602.0,94601.0,0.2760459]
[1746474161328,0.061,94602.0,94601.0,0.4119451]
[1746474167632,0.10469385,94602.0,94601.0,0.4119451]
[1746474171633,0.26549502,94602.0,94601.0,0.4119451]
[1746474172434,0.26549502,94602.0,94601.0,0.4443451]
[1746474175537,0.10469385,94602.0,94601.0,0.4443451]
[1746474177338,0.04369385,94602.0,94601.0,0.4443451]
[1746474177539,0.04369385,94602.0,94601.0,0.4770451]
[1746474178339,0.0612,94604.0,94603.0,0.2114414]
[1746474178340,0.07459385,94604.0,94603.0,0.2114414]
[1746474178539,0.04369385,94604.0,94603.0,0.2114414]
[1746474179142,0.07439385,94604.0,94603.0,0.3314414]
[1746474180140,0.07539385,94604.0,94603.0,0.3314414]
[1746474180340,0.07639385,94604.0,94603.0,0.3314414]
[1746474182849,0.04569385,94604.0,94603.0,0.3314414]
[1746474184242,0.07829385,94604.0,94603.0,0.3314414]
[1746474187138,0.14149385,94604.0,94603.0,0.3314414]
[1746474190143,0.14149385,94604.0,94603.0,0.2114414]
[1746474203259,0.14149385,94604.0,94572.0,0.00158608]
[1746474203456,0.0528734,94580.0,94576.0,0.0307]
[1746474203657,0.3608,94577.0,94575.0,0.08227175]
[1746474203856,0.0318,94576.0,94575.0,0.29377355]
[1746474204058,0.0639,94576.0,94575.0,0.27768778]
[1746474204258,0.0639,94576.0,94575.0,0.06618598]
[1746474204457,0.2754018,94576.0,94575.0,0.27768998]
[1746474204658,0.0639,94576.0,94575.0,0.27768998]
[1746474205155,0.0639,94576.0,94575.0,0.28768998]
[1746474205667,0.0639,94576.0,94575.0,0.28268998]
[1746474205870,0.0639,94576.0,94575.0,0.27768998]
[1746474208872,0.10759385,94576.0,94575.0,0.27768998]
[1746474210873,0.10759385,94576.0,94575.0,0.21308998]
[1746474212465,0.31909565,94576.0,94575.0,0.21308998]
[1746474214475,0.10759385,94576.0,94575.0,0.21308998]
[1746474214879,0.31909565,94576.0,94575.0,0.00158598]
[1746474215377,0.31909565,94576.0,94575.0,0.21308998]
[1746474216376,0.31909565,94576.0,94575.0,0.211504]
[1746474217075,0.2115085,94573.0,94572.0,0.00158608]
[1746474217379,0.5723085,94573.0,94572.0,0.00158608]
[1746474217881,0.5723085,94573.0,94572.0,0.24389688]
[1746474218381,0.5723085,94573.0,94572.0,0.03238608]
[1746474218673,0.2115242,94566.0,94565.0,0.00105747]
[1746474218877,0.5723242,94566.0,94565.0,0.00105747]
[1746474219068,0.6780722,94566.0,94565.0,0.00105747]
[1746474219481,0.7403722,94566.0,94565.0,0.00105747]
[1746474219677,0.7403722,94566.0,94565.0,0.21258387]
[1746474221980,0.74835058,94566.0,94565.0,0.21258387]
[1746474223879,0.79204443,94566.0,94565.0,0.21258387]
[1746474224078,0.68629643,94566.0,94565.0,0.24308387]
[1746474224773,0.68529643,94566.0,94565.0,0.24308387]
[1746474225481,0.68429643,94566.0,94565.0,0.03355747]
[1746474225684,0.68429643,94566.0,94565.0,0.24508387]
[1746474226279,0.68429643,94566.0,94565.0,0.00305747]
[1746474226478,0.2115354,94561.0,94560.0,0.2444354]
[1746474227272,0.2738354,94561.0,94560.0,0.2444354]
[1746474228081,0.2738354,94561.0,94560.0,0.2464354]
[1746474229291,0.2738354,94561.0,94560.0,0.2791354]
[1746474231191,0.2738354,94561.0,94560.0,0.3122354]
[1746474231891,0.2738354,94561.0,94560.0,0.3142354]
[1746474232491,0.47792787,94561.0,94560.0,0.3142354]
[1746474234188,0.47792787,94561.0,94560.0,0.2227]
[1746474234382,0.83872787,94561.0,94560.0,0.1569]
[1746474234989,0.83872787,94561.0,94560.0,0.124]
[1746474235186,0.83872787,94561.0,94560.0,0.004]
[1746474235890,0.3173622,94545.0,94544.0,0.2115734]
[1746474236190,0.6252689,94545.0,94544.0,0.2115734]
[1746474236791,0.6252689,94545.0,94544.0,0.2751734]
[1746474237086,0.6252689,94545.0,94544.0,0.3951734]
[1746474238493,0.6252689,94545.0,94544.0,0.3961734]
[1746474240089,0.6252689,94545.0,94544.0,0.1846]
[1746474240283,0.6252689,94545.0,94513.0,0.0529107]
[1746474240284,0.2115913,94536.0,94509.0,0.3608]
[1746474240486,0.5723913,94536.0,94530.0,0.2418032]
[1746474240786,0.5723913,94536.0,94531.0,0.0305]
[1746474240987,0.5723913,94536.0,94531.0,0.2421023]
[1746474241287,0.6048913,94536.0,94531.0,0.0305]
[1746474241587,0.6048913,94536.0,94535.0,0.0040578]
[1746474242390,0.64861591,94536.0,94535.0,0.0040578]
[1746474242894,0.64861591,94536.0,94535.0,0.0070578]
[1746474243389,0.64861591,94536.0,94535.0,0.0395578]
[1746474244294,0.40452461,94536.0,94535.0,0.3711513]
[1746474244793,0.16079564,94539.0,94538.0,0.2115868]
[1746474244988,0.16079564,94539.0,94538.0,0.5723868]
[1746474245190,0.16079564,94539.0,94538.0,0.7981628]
[1746474245591,0.3623,94555.0,94554.0,0.211551]
[1746474246100,0.3623,94555.0,94554.0,0.331551]
[1746474246597,0.3623,94555.0,94554.0,0.395551]
[1746474247298,0.3633,94555.0,94554.0,0.395551]
[1746474247895,0.3643,94555.0,94554.0,0.395551]
[1746474261813,0.40801636,94555.0,94554.0,0.395551]
[1746474266812,0.61956516,94555.0,94554.0,0.12]
[1746474267023,0.61956516,94555.0,94554.0,0.331551]
[1746474267211,0.61956516,94555.0,94554.0,0.211551]
[1746474267611,0.68086516,94555.0,94554.0,0.211551]
[1746474268215,0.68086516,94555.0,94554.0,0.331551]
[1746474271513,0.68086516,94555.0,94554.0,0.364851]
[1746474271720,0.2644885,94538.0,94523.0,0.0529047]
[1746474271929,0.0332,94537.0,94536.0,0.2430913]
[1746474272118,0.0635,94537.0,94536.0,0.2430913]
[1746474273124,0.0635,94537.0,94536.0,0.3963913]
[1746474273325,0.0635,94537.0,94536.0,0.3993913]
[1746474273526,0.0635,94537.0,94536.0,0.4013913]
[1746474273724,0.2750891,94537.0,94536.0,0.4659913]
[1746474274023,0.2750891,94537.0,94536.0,0.4011913]
[1746474274419,0.2750891,94537.0,94536.0,0.3991913]
[1746474275225,0.2750891,94537.0,94536.0,0.3971913]
[1746474275428,0.2750891,94537.0,94536.0,0.3981913]
[1746474275923,0.0635,94537.0,94536.0,0.3981913]
[1746474276233,0.2750891,94537.0,94536.0,0.3981913]
[1746474276524,0.3061891,94537.0,94536.0,0.3981913]
[1746474276725,0.3061891,94537.0,94536.0,0.4289913]
[1746474276916,0.3061891,94537.0,94536.0,0.4618913]
[1746474277726,0.34990546,94537.0,94536.0,0.4618913]
[1746474278122,0.13831636,94537.0,94536.0,0.4618913]
[1746474279025,0.10721636,94537.0,94536.0,0.4618913]
[1746474279627,0.31880546,94537.0,94536.0,0.4310913]
[1746474279825,0.31880546,94537.0,94536.0,0.122]
[1746474280020,0.31880546,94537.0,94536.0,0.3335913]
[1746474280223,0.35190546,94537.0,94536.0,0.3335913]
[1746474280420,0.35190546,94537.0,94536.0,0.122]
[1746474280620,0.14031636,94537.0,94536.0,0.3335913]
[1746474280825,0.14031636,94537.0,94536.0,0.3969913]
[1746474281127,0.10721636,94537.0,94536.0,0.3969913]
[1746474282931,0.04371636,94537.0,94536.0,0.3969913]
[1746474286226,0.04371636,94537.0,94536.0,0.5027713]
[1746474288333,0.13396399,94537.0,94536.0,0.5027713]
[1746474289635,0.13396399,94537.0,94536.0,0.5018713]
[1746474291534,0.13396399,94537.0,94536.0,0.3960913]
[1746474291736,0.13396399,94537.0,94536.0,0.5018713]
[1746474291935,0.16075678,94538.0,94537.0,0.2115891]
[1746474292131,0.16075678,94538.0,94537.0,0.2766891]
[1746474292338,0.16075678,94538.0,94537.0,0.3824691]
[1746474293036,0.16075678,94538.0,94537.0,0.3834691]
[1746474293237,0.16075678,94538.0,94537.0,0.5034691]
[1746474293438,0.16075678,94538.0,94537.0,0.5044691]
[1746474294528,0.16075678,94538.0,94537.0,0.5690291]
[1746474295343,0.20447314,94544.0,94543.0,0.2115756]
[1746474296144,0.20447314,94544.0,94543.0,0.3940756]
[1746474299053,0.04371636,94544.0,94543.0,0.4586356]
[1746474299247,0.04371636,94544.0,94543.0,0.4596356]
[1746474301354,0.04371636,94544.0,94543.0,0.4586356]
[1746474301555,0.07511636,94544.0,94543.0,0.4586356]
[1746474301955,0.04371636,94544.0,94543.0,0.4586356]
[1746474302456,0.04371636,94544.0,94543.0,0.18456]
[1746474302758,0.28768976,94544.0,94543.0,0.12]
[1746474303060,0.2439734,94544.0,94543.0,0.12]
[1746474303256,0.2115801,94541.0,94540.0,0.2115822]
[1746474303452,0.2115913,94537.0,94536.0,0.2115905]
[1746474303654,0.5723913,94537.0,94536.0,0.2115905]
[1746474304856,0.5723913,94537.0,94536.0,0.2125905]
[1746474305054,0.5723913,94537.0,94536.0,0.002]
[1746474305250,0.5723913,94537.0,94536.0,0.2135913]
[1746474306659,0.40451636,94537.0,94536.0,0.2135913]
[1746474307454,0.47041636,94537.0,94536.0,0.2135913]
[1746474308560,0.63128002,94537.0,94536.0,0.2135913]
[1746474311561,0.47041636,94537.0,94536.0,0.2135913]
[1746474312161,0.47041636,94537.0,94536.0,0.3335913]
[1746474314165,0.47041636,94537.0,94536.0,0.2135913]
[1746474315254,0.47041636,94537.0,94536.0,0.3335913]
[1746474316159,0.10961636,94537.0,94536.0,0.3335913]
[1746474316461,0.47041636,94537.0,94536.0,0.3335913]
[1746474316665,0.68200546,94537.0,94536.0,0.3335913]
[1746474316864,0.47041636,94537.0,94536.0,0.3335913]
[1746474317949,0.43731636,94537.0,94536.0,0.3966913]
[1746474323664,0.43731636,94537.0,94536.0,0.1838913]
[1746474323868,0.2116585,94506.0,94505.0,0.00105814]
[1746474324066,0.9332585,94506.0,94505.0,0.00105814]
[1746474325169,0.9332585,94506.0,94505.0,0.06561814]
[1746474325759,0.9332585,94506.0,94505.0,0.07061814]
[1746474326866,0.9332585,94506.0,94505.0,0.28227884]
[1746474327167,0.9332585,94506.0,94505.0,0.07061814]
[1746474327868,0.9332585,94506.0,94505.0,0.28227884]
[1746474328167,0.9332585,94506.0,94505.0,0.07061814]
[1746474328768,0.9332585,94506.0,94505.0,0.06761814]
[1746474329073,1.11182216,94506.0,94505.0,0.27727884]
[1746474329969,0.90016366,94506.0,94505.0,0.27727884]
[1746474330667,1.11182216,94506.0,94505.0,0.27727884]
[1746474331069,0.90016366,94506.0,94505.0,0.27727884]
[1746474332168,0.7226,94506.0,94505.0,0.27727884]
[1746474336369,0.7226,94506.0,94505.0,0.21271884]
[1746474336569,0.7226,94506.0,94505.0,0.27727884]
[1746474338473,0.001,94506.0,94505.0,0.38409083]
[1746474338874,0.3608,94513.0,94505.0,0.38409083]
[1746474338875,0.36004897,94513.0,94512.0,0.211645]
[1746474339770,0.36004897,94513.0,94512.0,0.275945]
[1746474340071,0.36104897,94513.0,94512.0,0.275945]
[1746474340574,0.36204897,94513.0,94512.0,0.275945]
[1746474341970,0.36104897,94513.0,94512.0,0.275945]
[1746474342770,0.36004897,94513.0,94512.0,0.276945]
[1746474347076,0.36004897,94513.0,94512.0,0.38275299]
[1746474351080,0.36004897,94513.0,94512.0,0.276945]
[1746474353277,0.36004897,94513.0,94512.0,0.341945]
[1746474353482,0.57169177,94513.0,94512.0,0.276945]
[1746474353669,0.39144897,94513.0,94512.0,0.341945]
[1746474353873,0.60309177,94513.0,94512.0,0.308845]
[1746474354076,0.42354897,94513.0,94512.0,0.308845]
[1746474354683,0.63519177,94513.0,94512.0,0.277645]
[1746474354989,0.42554897,94513.0,94512.0,0.277645]
[1746474355175,0.46928025,94513.0,94512.0,0.277645]
[1746474355775,0.46928025,94513.0,94512.0,0.212645]
[1746474355976,0.47128025,94513.0,94512.0,0.276645]
[1746474357873,0.47128025,94513.0,94512.0,0.309345]
[1746474358277,0.83283128,94513.0,94512.0,0.309345]
[1746474358681,0.2116473,94511.0,94510.0,0.211648]
[1746474358888,0.2116473,94511.0,94510.0,0.276648]
[1746474359384,0.2447473,94511.0,94510.0,0.276648]
[1746474359586,0.03290232,94511.0,94510.0,0.276648]
[1746474359782,0.03490232,94511.0,94510.0,0.276648]
[1746474359976,0.24854962,94511.0,94510.0,0.276648]
[1746474360175,0.03690232,94511.0,94510.0,0.276648]
[1746474360578,0.24854962,94511.0,94510.0,0.276648]
[1746474360990,0.24854962,94511.0,94510.0,0.2766495]
[1746474361187,0.03690232,94511.0,94510.0,0.2766495]
[1746474363286,0.24105424,94511.0,94510.0,0.2766495]
[1746474365293,0.45270154,94511.0,94510.0,0.2766495]
[1746474365793,0.24105424,94511.0,94510.0,0.2766495]
[1746474366189,0.2922809,94511.0,94510.0,0.2766495]
[1746474366388,0.3230809,94511.0,94510.0,0.2766495]
[1746474366694,0.1114336,94511.0,94510.0,0.2766495]
[1746474367089,0.3230809,94511.0,94510.0,0.2766495]
[1746474368193,0.1114336,94511.0,94510.0,0.2766495]
[1746474368492,0.1114336,94511.0,94510.0,0.2116495]
[1746474368686,0.07853128,94511.0,94510.0,0.2116495]
[1746474369082,0.07853128,94511.0,94510.0,0.2750495]
[1746474369298,0.29017858,94511.0,94510.0,0.2750495]
[1746474370992,0.28817858,94511.0,94510.0,0.2750495]
[1746474371498,0.28917858,94511.0,94510.0,0.2750495]
[1746474371699,0.29017858,94511.0,94510.0,0.2750495]
[1746474372398,0.29017858,94511.0,94505.0,0.00105814]
[1746474372399,0.2116585,94506.0,94505.0,0.00105814]
[1746474372603,0.2116585,94506.0,94505.0,0.06569814]
[1746474372790,0.2116585,94506.0,94505.0,0.27735884]
[1746474373299,0.2752585,94506.0,94505.0,0.34315884]
[1746474373599,0.0636,94506.0,94505.0,0.34315884]
[1746474373794,0.0304,94506.0,94505.0,0.34315884]
[1746474373999,0.0314,94506.0,94505.0,0.34315884]
[1746474374697,0.0324,94506.0,94505.0,0.34315884]
[1746474376896,0.07613128,94506.0,94505.0,0.34315884]
[1746474379192,0.28778978,94506.0,94505.0,0.24531884]
[1746474379395,0.28778978,94506.0,94502.0,0.00158726]
[1746474379396,0.23485808,94506.0,94492.0,0.06464]
[1746474379594,0.5724697,94501.0,94496.0,0.2116804]
[1746474379795,0.5724697,94501.0,94495.0,0.0318]
[1746474380196,0.5724697,94501.0,94492.0,0.06464]
[1746474380499,0.6369697,94501.0,94494.0,0.2116841]
[1746474380904,0.6369697,94501.0,94495.0,0.2116826]
[1746474381099,0.6369697,94501.0,94496.0,0.2116798]
[1746474381100,0.7569697,94501.0,94496.0,0.2116798]
[1746474381401,0.2116876,94493.0,94492.0,0.06464]
[1746474381597,0.2116898,94492.0,94491.0,0.2116909]
[1746474381803,0.2116943,94490.0,94489.0,0.2646186]
[1746474383304,0.2116988,94488.0,94487.0,0.0626]
[1746474383605,0.58037392,94488.0,94487.0,0.0626]
[1746474383805,0.58037392,94488.0,94487.0,0.274301]
[1746474384006,0.61097392,94488.0,94487.0,0.274301]
[1746474384898,0.61097392,94488.0,94487.0,0.0626]
[1746474387391,0.61097392,94488.0,94487.0,0.0325]
[1746474388800,0.3608,94488.0,94487.0,0.244201]
[1746474388992,0.3608,94488.0,94487.0,0.25977471]
[1746474389196,0.56512529,94488.0,94487.0,0.25977471]
[1746474390497,0.56512529,94488.0,94487.0,0.244201]
[1746474391007,0.56512529,94488.0,94487.0,0.2597598]
[1746474391909,0.77682409,94488.0,94487.0,0.0480588]
[1746474392699,0.75004922,94488.0,94487.0,0.0480588]
[1746474393303,0.75004922,94488.0,94487.0,0.0325]
[1746474396007,0.78004922,94488.0,94487.0,0.0325]
[1746474396601,0.6024988,94488.0,94487.0,0.0325]
[1746474397105,0.6345988,94488.0,94487.0,0.0325]
[1746474397702,0.6345988,94488.0,94487.0,0.275701]
[1746474397902,0.6345988,94488.0,94487.0,0.064]
[1746474398104,0.6345988,94488.0,94487.0,0.07953542]
[1746474398601,0.6345988,94488.0,94487.0,0.29123642]
[1746474400313,0.6345988,94488.0,94487.0,0.07953542]
[1746474400807,0.6024988,94488.0,94487.0,0.29123642]
[1746474401512,0.64625388,94488.0,94487.0,0.29123642]
[1746474402310,0.64625388,94488.0,94487.0,0.064]
[1746474402807,0.64625388,94488.0,94487.0,0.275701]
[1746474403111,0.64625388,94488.0,94487.0,0.2912716]
[1746474403305,0.6024988,94488.0,94487.0,0.0795706]
[1746474403715,0.6024988,94488.0,94487.0,0.2912716]
[1746474404018,0.5724988,94488.0,94487.0,0.2912716]
[1746474404909,0.3608,94488.0,94487.0,0.2912716]
[1746474405509,0.5724988,94488.0,94487.0,0.2912716]
[1746474406421,0.5724988,94488.0,94487.0,0.0795706]
[1746474406711,0.5724988,94488.0,94487.0,0.2912716]
[1746474406904,0.5724988,94488.0,94487.0,0.3559516]
[1746474407520,0.5724988,94488.0,94487.0,0.340381]
[1746474410716,0.5724988,94488.0,94487.0,0.12868]
[1746474410920,0.61624886,94488.0,94487.0,0.12868]
[1746474411220,0.61624886,94488.0,94487.0,0.340381]
[1746474411410,0.40455006,94488.0,94487.0,0.340381]
[1746474412313,0.3608,94488.0,94487.0,0.340381]
[1746474414922,0.5724988,94488.0,94487.0,0.340381]
[1746474415309,0.3608,94488.0,94487.0,0.340381]
[1746474415923,0.40455048,94488.0,94487.0,0.340381]
[1746474420720,0.40455048,94488.0,94487.0,0.12868]
[1746474420917,0.61624928,94488.0,94487.0,0.12868]
[1746474421325,0.61624928,94488.0,94487.0,0.064]
[1746474421624,0.61624928,94488.0,94487.0,0.0325]
[1746474421824,0.67824928,94488.0,94487.0,0.0325]
[1746474422426,0.6344988,94488.0,94487.0,0.0325]
[1746474422728,0.6028988,94488.0,94487.0,0.0325]
[1746474424219,0.3912,94488.0,94487.0,0.244201]
[1746474424421,0.3608,94488.0,94487.0,0.244201]
[1746474424819,0.5724988,94488.0,94487.0,0.276801]
[1746474425127,0.6039988,94488.0,94487.0,0.276801]
[1746474425429,0.3923,94488.0,94487.0,0.276801]
[1746474425929,0.3608,94488.0,94487.0,0.276801]
[1746474428831,0.2116858,94494.0,94493.0,0.2116876]
[1746474429032,0.9332858,94494.0,94493.0,0.2116876]
[1746474429239,0.2116876,94493.0,94492.0,0.2746898]
[1746474429533,0.40399641,94493.0,94492.0,0.2746898]
[1746474430326,0.43669641,94493.0,94492.0,0.2746898]
[1746474431227,0.43769641,94493.0,94492.0,0.063]
[1746474431635,0.43869641,94493.0,94492.0,0.2746898]
[1746474431837,0.32183659,94493.0,94492.0,0.2746898]
[1746474432838,0.32183659,94493.0,94492.0,0.063]
[1746474433135,0.32183659,94493.0,94492.0,0.2746898]
[1746474434633,0.11014899,94493.0,94492.0,0.2746898]
[1746474434824,0.04574899,94493.0,94492.0,0.2746898]
[1746474436427,0.25743659,94493.0,94492.0,0.2746898]
[1746474436628,0.04574899,94493.0,94492.0,0.2746898]
[1746474437135,0.25743659,94493.0,94492.0,0.2746898]
[1746474437735,0.04574899,94493.0,94492.0,0.2746898]
[1746474438229,0.25743659,94493.0,94492.0,0.2746898]
[1746474438430,0.04574899,94493.0,94492.0,0.2746898]
[1746474439027,0.04574899,94493.0,94492.0,0.3396098]
[1746474439231,0.25743659,94493.0,94492.0,0.3396098]
[1746474439422,0.04574899,94493.0,94492.0,0.3396098]
[1746474439939,0.25743659,94493.0,94492.0,0.3396098]
[1746474440237,0.04574899,94493.0,94492.0,0.3396098]
[1746474441130,0.25743659,94493.0,94492.0,0.3396098]
[1746474441329,0.04574899,94493.0,94492.0,0.3396098]
[1746474442137,0.07604899,94493.0,94492.0,0.3396098]
[1746474442637,0.28773659,94493.0,94492.0,0.12792]
[1746474442840,0.07604899,94493.0,94492.0,0.3396098]
[1746474443525,0.04574899,94493.0,94492.0,0.3396098]
[1746474445132,0.64586979,94494.0,94493.0,0.2116876]
[1746474445336,0.15276856,94500.0,94499.0,0.2116741]
[1746474445533,0.21424762,94507.0,94506.0,0.2116585]
[1746474445736,0.21424762,94507.0,94506.0,0.2765785]
[1746474445940,0.16774568,94507.0,94506.0,0.38239049]
[1746474446443,0.09892194,94507.0,94506.0,0.38239049]
[1746474447039,0.09892194,94507.0,94506.0,0.2785785]
[1746474447342,0.09892194,94507.0,94506.0,0.28638583]
[1746474447532,0.09892194,94507.0,94506.0,0.28538583]
[1746474447841,0.09892194,94507.0,94506.0,0.28738583]
[1746474448043,0.3608,94509.0,94508.0,0.211654]
[1746474448343,0.3608,94525.0,94519.0,0.2116294]
[1746474448536,0.3608,94525.0,94519.0,0.2765494]
[1746474449232,0.3608,94525.0,94519.0,0.3095494]
[1746474449434,0.3608,94525.0,94519.0,0.3416494]
[1746474449630,0.0025,94520.0,94519.0,0.3416494]
[1746474450444,0.0035,94520.0,94519.0,0.3416494]
[1746474450840,0.0035,94520.0,94519.0,0.34680325]
[1746474455747,0.0035,94520.0,94519.0,0.07025385]
[1746474455948,0.0665,94520.0,94519.0,0.34680325]
[1746474462147,0.0529086,94517.0,94493.0,0.3608]
[1746474462350,0.2116407,94515.0,94514.0,0.2116399]
[1746474462553,0.5724407,94515.0,94514.0,0.2433399]
[1746474462743,0.6045407,94515.0,94514.0,0.2433399]
[1746474463440,0.3929,94515.0,94514.0,0.2433399]
[1746474463646,0.3929,94515.0,94514.0,0.31295678]
[1746474463837,0.6045383,94515.0,94514.0,0.3079799]
[1746474464655,0.6055383,94515.0,94514.0,0.3079799]
[1746474464948,0.3949,94515.0,94514.0,0.3079799]
[1746474465347,0.3939,94515.0,94514.0,0.3079799]
[1746474465542,0.211645,94513.0,94512.0,0.06464]
[1746474465956,0.272345,94513.0,94512.0,0.06464]
[1746474467053,0.272345,94513.0,94501.0,0.0529169]
[1746474467054,0.0647,94513.0,94480.0,0.19456608]
[1746474467255,0.5724943,94490.0,94489.0,0.09644]
[1746474467568,0.5724943,94490.0,94489.0,0.06464]
[1746474467854,0.5724943,94490.0,94489.0,0.2763365]
[1746474468358,0.6357943,94490.0,94489.0,0.2773365]
[1746474469047,0.6357943,94490.0,94489.0,0.2763365]
[1746474469245,0.6357943,94490.0,94489.0,0.2773365]
[1746474469959,0.6357943,94490.0,94489.0,0.2763365]
[1746474471058,0.6357943,94490.0,94489.0,0.29260222]
[1746474472753,0.4241,94490.0,94489.0,0.29260222]
[1746474473060,0.6357943,94490.0,94489.0,0.29260222]
[1746474475459,0.6357943,94490.0,94489.0,0.22796222]
[1746474475764,0.6357943,94490.0,94489.0,0.2116965]
[1746474476359,0.4241,94490.0,94489.0,0.2116965]
[1746474476563,0.3915,94490.0,94489.0,0.29011461]
[1746474476861,0.6031943,94490.0,94489.0,0.29011461]
[1746474477261,0.3915,94490.0,94489.0,0.29011461]
[1746474477464,0.6031943,94490.0,94489.0,0.29011461]
[1746474477962,0.3915,94490.0,94489.0,0.29011461]
[1746474481565,0.3915,94490.0,94489.0,0.2736965]
[1746474482265,0.5250607,94490.0,94489.0,0.2736965]
[1746474482577,0.5250607,94490.0,94489.0,0.29016349]
[1746474485068,0.3915,94490.0,94489.0,0.29016349]
[1746474486858,0.6031943,94490.0,94489.0,0.29016349]
[1746474487870,0.6031943,94490.0,94489.0,0.2736965]
[1746474488669,0.6031943,94490.0,94489.0,0.29010591]
[1746474490079,0.6031943,94490.0,94489.0,0.07840941]
[1746474490571,0.6031943,94490.0,94489.0,0.04680941]
[1746474490764,0.6350943,94490.0,94489.0,0.04680941]
[1746474492362,0.6350943,94490.0,94489.0,0.01640941]
[1746474494175,0.2117055,94485.0,94484.0,0.2760075]
[1746474494476,0.5725055,94485.0,94484.0,0.2760075]
[1746474494672,0.5725055,94485.0,94482.0,0.06464]
[1746474494673,0.21171,94483.0,94482.0,0.06464]
[1746474495276,0.20971,94483.0,94482.0,0.08070547]
[1746474495870,0.3608,94485.0,94484.0,0.2117078]
[1746474496171,0.5725055,94485.0,94484.0,0.2117078]
[1746474496373,0.2117078,94484.0,94483.0,0.062]
[1746474496672,0.2418078,94484.0,94483.0,0.28977547]
[1746474497375,0.2408078,94484.0,94483.0,0.22777547]
[1746474497589,0.2408078,94484.0,94483.0,0.28967547]
[1746474497875,0.2408078,94484.0,94483.0,0.29167547]
[1746474498274,0.2408078,94484.0,94483.0,0.07996547]
[1746474499079,0.2408078,94484.0,94483.0,0.29167547]
[1746474499376,0.2408078,94484.0,94483.0,0.07996547]
[1746474500582,0.2408078,94484.0,94483.0,0.29167547]
[1746474501774,0.2408078,94484.0,94483.0,0.07996547]
[1746474502771,0.2408078,94484.0,94483.0,0.29167547]
[1746474506078,0.2107078,94484.0,94483.0,0.29167547]
[1746474513675,0.3608,94485.0,94484.0,0.2117078]
[1746474513875,0.3608,94485.0,94484.0,0.2750078]
[1746474514072,0.18697087,94495.0,94494.0,0.2116853]
[1746474514377,0.18697087,94495.0,94494.0,0.22775077]
[1746474515170,0.18697087,94495.0,94494.0,0.29105077]
[1746474516186,0.0317,94498.0,94497.0,0.2116786]
[1746474516578,0.0317,94498.0,94497.0,0.22774407]
[1746474517377,0.0337,94498.0,94497.0,0.22774407]
[1746474517684,0.0357,94498.0,94497.0,0.22774407]
[1746474518688,0.2473764,94498.0,94497.0,0.22774407]
[1746474519285,0.0357,94498.0,94497.0,0.01606547]
[1746474519480,0.2786764,94498.0,94497.0,0.01606547]
[1746474521680,0.2117078,94484.0,94483.0,0.2763897]
[1746474521882,0.5725078,94484.0,94483.0,0.3077897]
[1746474522082,0.6364078,94484.0,94483.0,0.3077897]
[1746474522485,0.4247,94484.0,94483.0,0.3077897]
[1746474522686,0.6364078,94484.0,94483.0,0.09708]
[1746474523280,0.6364078,94484.0,94483.0,0.30979]
[1746474523479,0.6364078,94484.0,94483.0,0.09808]
[1746474524286,0.6364078,94484.0,94483.0,0.0334]
[1746474525185,0.6364078,94484.0,94483.0,0.24511]
[1746474525381,0.6364078,94484.0,94483.0,0.0653]
[1746474529092,0.68015648,94484.0,94483.0,0.0653]
[1746474533596,0.68015648,94484.0,94483.0,0.08117661]
[1746474537289,0.68015648,94484.0,94483.0,0.29288661]
[1746474538500,0.40554868,94484.0,94483.0,0.29188661]
[1746474539193,0.40654868,94484.0,94483.0,0.29088661]
[1746474539698,0.61825648,94484.0,94483.0,0.29088661]
[1746474543701,0.61825648,94484.0,94483.0,0.07917661]
[1746474545486,0.64985648,94484.0,94483.0,0.07917661]
[1746474546092,0.64985648,94484.0,94483.0,0.07914608]
[1746474546711,0.67995648,94484.0,94483.0,0.07914608]
[1746474547793,0.61825648,94484.0,94483.0,0.29085608]
[1746474548695,0.61825648,94484.0,94483.0,0.07914608]
[1746474549202,0.64995648,94484.0,94483.0,0.07914608]
[1746474549401,0.64995648,94484.0,94483.0,0.29085608]
[1746474550399,0.64995648,94484.0,94483.0,0.07914608]
[1746474552699,0.64995648,94484.0,94483.0,0.04724608]
[1746474554503,0.64995648,94484.0,94475.0,0.21278638]
[1746474554504,0.2117257,94476.0,94475.0,0.21278638]
[1746474554706,0.5725257,94476.0,94475.0,0.21278638]
[1746474555305,0.5725257,94476.0,94475.0,0.00105848]
[1746474556302,0.5725257,94476.0,94475.0,0.00205848]
[1746474556806,0.5725257,94476.0,94475.0,0.00305848]
[1746474557906,0.5725257,94476.0,94475.0,0.06555848]
[1746474559708,0.5725257,94476.0,94475.0,0.06455848]
[1746474559909,0.5785257,94476.0,94475.0,0.06355848]
[1746474561309,0.5755257,94476.0,94475.0,0.06355848]
[1746474561609,0.62327438,94476.0,94475.0,0.06355848]
[1746474561803,0.62027438,94476.0,94475.0,0.06355848]
[1746474562006,0.62427438,94476.0,94475.0,0.06355848]
[1746474562201,0.65667438,94476.0,94475.0,0.06355848]
[1746474562811,0.65267438,94476.0,94475.0,0.06355848]
[1746474563010,0.65567438,94476.0,94475.0,0.06355848]
[1746474563706,0.65667438,94476.0,94475.0,0.06355848]
[1746474563901,0.44494868,94476.0,94460.0,0.3608]
[1746474564102,0.44494868,94476.0,94467.0,0.00158785]
[1746474564103,0.5725436,94468.0,94467.0,0.00158785]